bitfinex-derivatives/quotes_BTCF0:USTF0_20251128
["timestamp","ask_amount","ask_price","bid_price","bid_amount"]
[1764337329455,0.3608,91849.0,91848.0,0.0547086]
[1764337329646,0.40609,91849.0,91848.0,0.0547086]
[1764337330047,0.77609,91849.0,91848.0,0.0547086]
[1764337330652,0.3608,91849.0,91848.0,0.0547086]
[1764337331046,0.40609,91858.0,91857.0,0.0547075]
[1764337331354,0.78609,91858.0,91857.0,0.0108875]
[1764337332446,0.78609,91858.0,91857.0,0.0118875]
[1764337333556,0.78609,91858.0,91857.0,0.0557075]
[1764337333866,0.00016328,91867.0,91866.0,0.0547065]
[1764337334157,0.00016328,91867.0,91866.0,0.4647065]
[1764337334364,0.00016328,91867.0,91866.0,0.2447065]
[1764337334853,0.00016328,91867.0,91866.0,0.4347065]
[1764337335157,0.00016328,91867.0,91866.0,0.53239654]
[1764337335365,0.00016328,91867.0,91866.0,0.1957065]
[1764337335758,0.00516328,91867.0,91866.0,0.1957065]
[1764337336267,0.00016328,91867.0,91866.0,0.1957065]
[1764337336555,0.00316328,91867.0,91866.0,0.29339654]
[1764337336861,0.00016328,91867.0,91866.0,0.16273367]
[1764337337066,0.3608,91887.0,91886.0,0.0560141]
[1764337337264,0.0001,91889.0,91888.0,0.04513]
[1764337337563,0.0001,91889.0,91888.0,0.40593]
[1764337338158,0.00016328,91898.0,91897.0,0.0560128]
[1764337338864,0.04656328,91898.0,91897.0,0.0560128]
[1764337339358,0.04656328,91898.0,91897.0,0.0570128]
[1764337339359,0.05656328,91898.0,91897.0,0.0570128]
[1764337339756,0.05656328,91898.0,91897.0,0.001]
[1764337340263,0.05656328,91898.0,91897.0,0.04613]
[1764337340850,0.05656328,91898.0,91897.0,0.10421311]
[1764337341055,0.05656328,91898.0,91897.0,0.001]
[1764337341258,0.47656328,91898.0,91897.0,0.001]
[1764337343074,0.43016328,91898.0,91897.0,0.04613]
[1764337343260,0.01016328,91898.0,91897.0,0.04613]
[1764337343773,0.00081438,91898.0,91897.0,0.0570128]
[1764337344362,0.00081438,91898.0,91897.0,0.0580128]
[1764337345269,0.04656309,91907.0,91906.0,0.0560117]
[1764337345668,0.04656309,91907.0,91906.0,0.0108817]
[1764337346268,0.04656309,91907.0,91906.0,0.0329417]
[1764337346855,0.02331,91906.0,91905.0,0.0329418]
[1764337347058,0.02331,91906.0,91905.0,0.0560118]
[1764337347059,0.0464,91906.0,91905.0,0.0560118]
[1764337347468,0.0464,91906.0,91905.0,0.0108818]
[1764337347967,0.0464,91906.0,91905.0,0.0118818]
[1764337348164,0.0464,91906.0,91905.0,0.0339418]
[1764337348375,0.0484,91906.0,91905.0,0.0118818]
[1764337348571,0.0484,91906.0,91905.0,0.0570118]
[1764337348763,0.0484,91906.0,91905.0,0.0118818]
[1764337350661,0.4792817,91906.0,91898.0,0.17216]
[1764337350861,0.0464,91899.0,91898.0,0.1830427]
[1764337351169,0.4464,91899.0,91898.0,0.0108827]
[1764337351362,0.0572827,91898.0,91897.0,0.01263411]
[1764337351559,0.02331,91889.0,91888.0,0.05615718]
[1764337351871,0.04642,91889.0,91888.0,0.04527328]
[1764337352571,0.04642,91889.0,91888.0,0.02222328]
[1764337352766,0.04642,91889.0,91888.0,0.00016328]
[1764337353163,0.42642,91889.0,91888.0,0.01420773]
[1764337353357,0.42642,91889.0,91888.0,0.01720773]
[1764337354367,0.42642,91889.0,91888.0,0.01820773]
[1764337354565,0.42642,91889.0,91888.0,0.06441773]
[1764337354764,0.02331,91889.0,91888.0,0.06441773]
[1764337354964,0.4072,91900.0,91899.0,0.0570925]
[1764337355165,0.8072,91900.0,91899.0,0.0570925]
[1764337355468,0.5272,91900.0,91899.0,0.0570925]
[1764337355661,0.0464,91900.0,91899.0,0.0570925]
[1764337356569,0.0464,91900.0,91899.0,0.0580925]
[1764337356869,0.0464,91900.0,91899.0,0.0590925]
[1764337358671,0.02329,91900.0,91899.0,0.0590925]
[1764337358875,0.04656309,91907.0,91906.0,0.0570917]
[1764337359773,0.0464,91901.0,91900.0,0.04621]
[1764337359980,0.0464,91901.0,91899.0,0.002]
[1764337359981,0.0464,91900.0,91899.0,0.0590925]
[1764337360474,0.0464,91900.0,91899.0,0.0580925]
[1764337361279,0.0464,91900.0,91899.0,0.0707425]
[1764337361671,0.0464,91900.0,91899.0,0.08477012]
[1764337361867,0.04656309,91907.0,91906.0,0.0570917]
[1764337362478,0.00016309,91907.0,91906.0,0.0570917]
[1764337364079,0.00116309,91907.0,91906.0,0.0570917]
[1764337364484,0.04756309,91907.0,91906.0,0.0570917]
[1764337365188,0.00116309,91907.0,91906.0,0.0570917]
[1764337367186,0.04756309,91907.0,91906.0,0.0570917]
[1764337367790,0.00116309,91907.0,91906.0,0.0570917]
[1764337368682,0.00116309,91907.0,91906.0,0.13461016]
[1764337370493,0.00116309,91907.0,91906.0,0.0570917]
[1764337371989,0.3608,91919.0,91906.0,0.0570917]
[1764337371990,0.00027196,91926.0,91925.0,0.0570895]
[1764337372188,0.00027196,91926.0,91925.0,0.2293295]
[1764337372692,0.02356196,91926.0,91925.0,0.2293295]
[1764337373091,0.04767196,91926.0,91925.0,0.28744317]
[1764337373683,0.04767196,91926.0,91925.0,0.29044317]
[1764337373885,0.02356196,91926.0,91925.0,0.29144317]
[1764337374086,0.82113136,91926.0,91925.0,0.004]
[1764337374595,0.51747196,91926.0,91925.0,0.0380395]
[1764337375495,0.40747196,91926.0,91925.0,0.0610895]
[1764337376082,0.40747196,91926.0,91925.0,0.0380395]
[1764337376288,0.76747196,91926.0,91925.0,0.0380395]
[1764337376488,0.76747196,91926.0,91925.0,0.0148795]
[1764337376989,0.76747196,91926.0,91925.0,0.0350395]
[1764337377190,0.76747196,91926.0,91925.0,0.0360395]
[1764337377786,0.76747196,91926.0,91925.0,0.0350395]
[1764337377988,0.76747196,91926.0,91925.0,0.0360395]
[1764337378589,0.40747196,91926.0,91925.0,0.0590895]
[1764337379302,0.40747196,91926.0,91925.0,0.0360395]
[1764337379897,0.40747196,91926.0,91925.0,0.0128795]
[1764337380395,0.78747196,91926.0,91925.0,0.0265705]
[1764337380604,0.80025196,91926.0,91925.0,0.015691]
[1764337381098,0.78747196,91926.0,91925.0,0.061901]
[1764337381494,0.78747196,91926.0,91925.0,0.015691]
[1764337381896,0.40747196,91926.0,91925.0,0.060291]
[1764337382199,0.38436196,91926.0,91925.0,0.060291]
[1764337382397,0.40611196,91926.0,91925.0,0.060291]
[1764337383794,0.40611196,91926.0,91925.0,0.0711705]
[1764337383996,0.41699136,91926.0,91925.0,0.060291]
[1764337384296,0.41699136,91926.0,91925.0,0.015691]
[1764337384297,0.42977136,91926.0,91925.0,0.015691]
[1764337384797,0.41699136,91926.0,91925.0,0.037651]
[1764337385006,0.82977136,91926.0,91925.0,0.015691]
[1764337385991,0.82743549,91926.0,91925.0,0.015691]
[1764337388891,0.81465549,91926.0,91925.0,0.015691]
[1764337389294,0.82536549,91926.0,91925.0,0.015691]
[1764337391005,0.81465549,91926.0,91925.0,0.059091]
[1764337391603,0.81465549,91926.0,91925.0,0.015691]
[1764337392110,0.82536549,91926.0,91925.0,0.015691]
[1764337393894,0.82536549,91926.0,91916.0,0.00016318]
[1764337393895,0.0555704,91917.0,91916.0,0.05827685]
[1764337394204,0.04597,91907.0,91906.0,0.05811367]
[1764337394405,0.40677,91907.0,91906.0,0.05811367]
[1764337394796,0.40677,91907.0,91906.0,0.10163367]
[1764337395100,0.40677,91907.0,91906.0,0.07974367]
[1764337396293,0.02303,91903.0,91902.0,0.10163367]
[1764337396503,0.3608,91907.0,91906.0,0.04352]
[1764337396504,0.38383,91907.0,91906.0,0.04352]
[1764337396705,0.40677,91907.0,91906.0,0.04452]
[1764337397304,0.40677,91907.0,91906.0,0.02263]
[1764337397808,0.40677,91907.0,91906.0,0.02863]
[1764337398208,0.00016284,91916.0,91913.0,0.0108807]
[1764337398209,0.0108808,91914.0,91913.0,0.0108807]
[1764337398397,0.4668508,91914.0,91913.0,0.04352]
[1764337399394,0.4668508,91914.0,91913.0,0.04452]
[1764337400000,0.1368508,91914.0,91913.0,0.04452]
[1764337400295,0.10303,91914.0,91913.0,0.04852]
[1764337400513,0.00016284,91916.0,91915.0,0.04352]
[1764337400703,0.36016284,91916.0,91915.0,0.04352]
[1764337401212,0.40613284,91916.0,91915.0,0.04352]
[1764337401901,0.40613284,91916.0,91915.0,0.04752]
[1764337403110,0.40613284,91916.0,91915.0,0.10563367]
[1764337403311,0.40613284,91916.0,91915.0,0.10663367]
[1764337405901,0.40613284,91916.0,91915.0,0.06311367]
[1764337406104,0.0108824,91900.0,91897.0,0.00016318]
[1764337406307,0.3608,91898.0,91897.0,0.04368318]
[1764337407204,0.3608,91898.0,91897.0,0.04568318]
[1764337407405,0.7808,91898.0,91897.0,0.01016318]
[1764337407712,0.7808,91898.0,91897.0,0.05368318]
[1764337408104,0.7808,91898.0,91897.0,0.01016318]
[1764337408609,0.7808,91898.0,91897.0,0.05368318]
[1764337410510,0.7808,91898.0,91897.0,0.06778244]
[1764337410913,0.8008,91898.0,91897.0,0.06778244]
[1764337412010,0.8008,91898.0,91897.0,0.02426244]
[1764337413115,1.1616,91898.0,91897.0,0.02426244]
[1764337415010,1.1616,91898.0,91897.0,0.06785244]
[1764337415929,1.1616,91898.0,91897.0,0.02426244]
[1764337417614,1.33376,91898.0,91897.0,0.01016318]
[1764337417810,0.010884,91887.0,91886.0,0.00027208]
[1764337418015,0.811684,91887.0,91886.0,0.00027208]
[1764337419414,0.811684,91887.0,91886.0,0.04386208]
[1764337419615,0.571684,91887.0,91886.0,0.04386208]
[1764337419810,0.5608,91887.0,91886.0,0.04386208]
[1764337420123,0.5668,91887.0,91886.0,0.04386208]
[1764337420624,0.5608,91887.0,91886.0,0.05881441]
[1764337420814,0.5658,91887.0,91886.0,0.05881441]
[1764337421011,0.3658,91887.0,91886.0,0.05881441]
[1764337421215,0.3608,91887.0,91886.0,0.05881441]
[1764337421522,0.3698,91887.0,91886.0,0.05981441]
[1764337423018,0.7498,91887.0,91886.0,0.05981441]
[1764337423311,0.7408,91887.0,91886.0,0.05981441]
[1764337423512,0.7458,91887.0,91886.0,0.05981441]
[1764337424321,0.7408,91887.0,91886.0,0.05981441]
[1764337424520,0.7458,91887.0,91886.0,0.05981441]
[1764337425421,0.3658,91887.0,91886.0,0.05981441]
[1764337425725,0.7958,91887.0,91886.0,0.05981441]
[1764337425926,0.3658,91887.0,91886.0,0.05981441]
[1764337427519,0.3648,91887.0,91886.0,0.11797674]
[1764337428027,0.3658,91887.0,91886.0,0.11797674]
[1764337429225,0.3658,91887.0,91886.0,0.05981441]
[1764337429429,0.3658,91887.0,91886.0,0.11798803]
[1764337430422,0.7658,91887.0,91886.0,0.11798803]
[1764337430824,0.3678,91887.0,91886.0,0.11798803]
[1764337431133,0.3678,91887.0,91886.0,0.05981441]
[1764337433529,0.3608,91887.0,91886.0,0.05881441]
[1764337433731,0.3678,91887.0,91886.0,0.05981441]
[1764337434137,0.3608,91887.0,91886.0,0.05881441]
[1764337434434,0.3678,91887.0,91886.0,0.05981441]
[1764337437038,0.8078,91887.0,91886.0,0.01622441]
[1764337438537,0.8078,91887.0,91886.0,0.00127208]
[1764337438835,0.8078,91887.0,91877.0,0.00016318]
[1764337438836,0.010885,91878.0,91877.0,0.00016318]
[1764337439030,0.811685,91878.0,91877.0,0.00016318]
[1764337439630,0.811685,91878.0,91877.0,0.04375318]
[1764337439841,0.816685,91878.0,91877.0,0.04475318]
[1764337440943,0.3658,91878.0,91877.0,0.04475318]
[1764337443248,0.3658,91878.0,91877.0,0.13737807]
[1764337443840,0.005,91878.0,91877.0,0.13737807]
[1764337444136,0.005,91878.0,91877.0,0.13737677]
[1764337445149,0.005,91878.0,91877.0,0.05965551]
[1764337446642,0.005,91878.0,91877.0,0.13738906]
[1764337446958,0.385,91878.0,91877.0,0.05965551]
[1764337448250,0.205,91878.0,91877.0,0.05965551]
[1764337448451,0.435,91878.0,91877.0,0.05965551]
[1764337453242,0.435,91878.0,91877.0,0.13738906]
[1764337454145,0.005,91878.0,91877.0,0.13738906]
[1764337454339,0.005,91878.0,91877.0,0.05965551]
[1764337455853,0.3608,91887.0,91886.0,0.0563241]
[1764337456038,0.00016318,91896.0,91895.0,0.056323]
[1764337457348,0.00016318,91896.0,91895.0,0.04544]
[1764337459546,0.00316318,91896.0,91895.0,0.04544]
[1764337463056,0.00316318,91896.0,91895.0,0.06088374]
[1764337465843,0.43316318,91896.0,91895.0,0.06088374]
[1764337466142,0.09316318,91896.0,91895.0,0.06088374]
[1764337466342,0.44316318,91896.0,91895.0,0.06088374]
[1764337466542,0.11316318,91896.0,91895.0,0.06088374]
[1764337466742,0.38316318,91896.0,91895.0,0.06088374]
[1764337468349,0.38316318,91896.0,91895.0,0.03780374]
[1764337468549,0.38316318,91896.0,91895.0,0.05923374]
[1764337470254,0.00316318,91896.0,91895.0,0.05923374]
[1764337470559,0.41316318,91896.0,91895.0,0.11751152]
[1764337471660,0.42404608,91896.0,91895.0,0.05923374]
[1764337471860,0.41316318,91896.0,91895.0,0.05923374]
[1764337472248,0.41316318,91896.0,91895.0,0.11751152]
[1764337472656,0.41316318,91896.0,91895.0,0.05923374]
[1764337473861,0.42404608,91896.0,91895.0,0.05923374]
[1764337475151,0.42404608,91896.0,91895.0,0.11751152]
[1764337475458,0.42404608,91896.0,91895.0,0.05923374]
[1764337476254,0.42404608,91896.0,91895.0,0.11751152]
[1764337478158,0.01404608,91896.0,91895.0,0.11751152]
[1764337478561,0.44404608,91896.0,91895.0,0.11751152]
[1764337480768,0.43316318,91896.0,91895.0,0.11751152]
[1764337481066,0.45316318,91896.0,91895.0,0.11751152]
[1764337481266,0.45316318,91896.0,91895.0,0.05923374]
[1764337488569,0.46404608,91896.0,91895.0,0.07011674]
[1764337491170,0.46404608,91896.0,91895.0,0.05923374]
[1764337493074,0.46404608,91896.0,91895.0,0.11760944]
[1764337496073,0.45316318,91896.0,91895.0,0.11760944]
[1764337499269,0.45316318,91896.0,91895.0,0.05923374]
[1764337503982,0.00316318,91896.0,91895.0,0.41923374]
[1764337504284,0.3608,91925.0,91913.0,0.0326609]
[1764337504579,0.3716795,91925.0,91913.0,0.0559409]
[1764337504784,0.3608,91925.0,91924.0,0.0559396]
[1764337505174,0.3608,91925.0,91924.0,0.04506]
[1764337506386,0.3608,91925.0,91924.0,0.10322239]
[1764337506779,0.3608,91925.0,91924.0,0.04506]
[1764337507986,0.3608,91925.0,91924.0,0.04606]
[1764337508581,0.3608,91933.0,91925.0,0.0559395]
[1764337508886,0.3608,91933.0,91925.0,0.11406419]
[1764337509391,0.3608,91933.0,91925.0,0.0559395]
[1764337511686,0.3608,91933.0,91925.0,0.0579395]
[1764337511990,0.3716786,91933.0,91925.0,0.0579395]
[1764337512387,0.3716786,91933.0,91925.0,0.50592532]
[1764337512687,0.3716786,91933.0,91925.0,0.50692532]
[1764337512883,0.3608,91933.0,91925.0,0.50692532]
[1764337513091,1.96e-06,91926.0,91925.0,0.4489395]
[1764337513293,0.3608,91933.0,91932.0,0.0692286]
[1764337514590,0.3608,91933.0,91932.0,0.2411886]
[1764337516896,0.00016284,91934.0,91932.0,0.6111886]
[1764337517192,0.0108757,91957.0,91956.0,0.01395]
[1764337517388,0.3908757,91957.0,91956.0,0.03565]
[1764337517986,0.0608757,91957.0,91956.0,0.0581]
[1764337518187,0.05,91957.0,91956.0,0.0581]
[1764337518394,0.3608,91960.0,91959.0,0.04415]
[1764337518596,0.7508,91960.0,91959.0,0.04415]
[1764337518796,0.4908,91960.0,91959.0,0.04415]
[1764337519694,0.7908,91960.0,91959.0,0.04415]
[1764337519996,0.3608,91960.0,91959.0,0.04415]
[1764337520191,0.3608,91971.0,91965.0,0.04415]
[1764337520505,0.3608,91971.0,91965.0,0.0550247]
[1764337520798,0.3608,91971.0,91965.0,0.2269447]
[1764337521688,0.00927184,91966.0,91965.0,0.2279447]
[1764337521889,0.00927184,91966.0,91965.0,0.0560247]
[1764337522087,0.00927184,91966.0,91965.0,0.2279447]
[1764337522290,0.00027184,91966.0,91965.0,0.2269447]
[1764337522586,0.00427184,91966.0,91965.0,0.2269447]
[1764337523400,0.00327184,91966.0,91965.0,0.2269447]
[1764337525204,0.00327184,91966.0,91965.0,0.24321594]
[1764337526200,0.00327184,91966.0,91965.0,0.23234124]
[1764337526401,0.00327184,91966.0,91965.0,0.06042124]
[1764337526599,0.00327184,91966.0,91965.0,0.23234124]
[1764337527898,0.00327184,91966.0,91965.0,0.23230124]
[1764337528400,0.39327184,91966.0,91965.0,0.06042124]
[1764337528601,0.07327184,91966.0,91965.0,0.06042124]
[1764337528905,0.12327184,91966.0,91965.0,0.06042124]
[1764337529102,0.00327184,91966.0,91965.0,0.06042124]
[1764337532807,0.42327184,91966.0,91965.0,0.05935124]
[1764337534304,0.43414644,91966.0,91965.0,0.05935124]
[1764337534511,0.43414644,91966.0,91965.0,0.23123124]
[1764337535109,0.42327184,91966.0,91965.0,0.23123124]
[1764337535410,0.00327184,91966.0,91965.0,0.23123124]
[1764337535611,0.17327184,91966.0,91965.0,0.23123124]
[1764337537105,0.00327184,91966.0,91965.0,0.23123124]
[1764337540008,5e-08,91968.0,91966.0,0.0108746]
[1764337540315,5e-08,91968.0,91967.0,0.3608]
[1764337541807,0.00300005,91968.0,91967.0,0.40388]
[1764337543213,0.0108723,91987.0,91978.0,0.04308]
[1764337543416,0.0108721,91988.0,91978.0,0.2257932]
[1764337543913,0.0108723,91986.0,91978.0,0.2257932]
[1764337544315,0.3648,91979.0,91978.0,0.2257932]
[1764337545015,0.3658,91979.0,91978.0,0.2257932]
[1764337548915,0.3658,91979.0,91978.0,0.24104944]
[1764337549615,0.3766731,91979.0,91978.0,0.06920944]
[1764337549809,0.3766731,91979.0,91978.0,0.24104944]
[1764337550113,0.3658,91979.0,91978.0,0.24104944]
[1764337552720,0.3658,91979.0,91978.0,0.06920944]
[1764337553013,0.3658,91979.0,91978.0,0.24104944]
[1764337553409,0.005,91979.0,91978.0,0.24104944]
[1764337554104,0.005,91979.0,91978.0,0.29893257]
[1764337554309,0.2608,91990.0,91989.0,0.0539519]
[1764337555615,0.2668,91990.0,91989.0,0.0539519]
[1764337555812,0.2678,91990.0,91989.0,0.0539519]
[1764337556011,0.007,91990.0,91989.0,0.0539519]
[1764337556521,0.3608,91999.0,91998.0,0.0539508]
[1764337556720,0.3608,91999.0,91998.0,0.2257908]
[1764337557116,0.011,92000.0,91999.0,0.04308]
[1764337557318,0.40439,92019.0,92018.0,0.04308]
[1764337557623,0.40439,92019.0,92018.0,0.19297]
[1764337557926,0.40439,92037.0,92036.0,0.02117]
[1764337558218,0.04359,92028.0,92027.0,0.00016299]
[1764337559011,0.40439,92028.0,92027.0,0.00016299]
[1764337559409,0.0544593,92011.0,92010.0,0.1405376]
[1764337559613,0.04359,92002.0,92001.0,0.05598]
[1764337560117,0.04359,92002.0,92001.0,0.22778]
[1764337560319,0.0544591,92013.0,92012.0,0.02191]
[1764337560519,0.04359,92002.0,92001.0,0.22778]
[1764337560816,0.04359,92002.0,92001.0,0.05598]
[1764337561023,0.04359,92002.0,92001.0,0.22978]
[1764337561616,0.04359,92002.0,92001.0,0.05798]
[1764337561919,0.04359,92002.0,92001.0,0.22978]
[1764337562120,0.02196,92020.0,92019.0,0.04369]
[1764337562319,0.04437,92020.0,92019.0,0.04369]
[1764337563118,0.1405376,92030.0,92010.0,0.151407]
[1764337563119,0.0552388,92015.0,92014.0,0.21549]
[1764337563822,0.0552388,92015.0,92014.0,0.1718]
[1764337564211,0.0552394,92010.0,92009.0,0.40449]
[1764337564517,0.04437,92010.0,92009.0,0.5871595]
[1764337565618,0.3608,92020.0,92019.0,0.04369]
[1764337565824,0.77517,92020.0,92019.0,0.04369]
[1764337567525,0.77517,92020.0,92019.0,0.012]
[1764337568212,0.75276,92020.0,92019.0,0.05569]
[1764337568416,0.77517,92020.0,92019.0,0.05569]
[1764337568829,0.77517,92020.0,92019.0,0.012]
[1764337570620,1.17517,92020.0,92019.0,0.012]
[1764337573017,0.77517,92020.0,92019.0,0.012]
[1764337573218,0.77517,92020.0,92019.0,0.02690093]
[1764337573518,0.77517,92020.0,92019.0,0.012]
[1764337574324,0.0108704,92002.0,92001.0,0.0548704]
[1764337574627,0.0557104,92002.0,92001.0,0.0548704]
[1764337574929,0.0339799,92006.0,92005.0,0.05487]
[1764337575114,0.02311,92006.0,92005.0,0.05487]
[1764337575315,0.38391,92010.0,92009.0,0.0548695]
[1764337575521,0.3608,92010.0,92009.0,0.0548695]
[1764337575921,0.4165085,92018.0,92017.0,0.0548686]
[1764337576123,0.7608,92018.0,92017.0,0.0548686]
[1764337576325,0.00016238,92022.0,92017.0,0.0548686]
[1764337576326,0.00016238,92022.0,92021.0,0.0548681]
[1764337576722,0.02327238,92022.0,92021.0,0.2266281]
[1764337576926,0.04500238,92022.0,92021.0,0.2266281]
[1764337577244,0.04484,92019.0,92018.0,0.0548685]
[1764337577423,0.04484,92019.0,92018.0,0.0108685]
[1764337577732,0.02311,92019.0,92018.0,0.0548685]
[1764337577924,0.04484,92019.0,92018.0,0.044]
[1764337578629,0.04484,92019.0,92018.0,0.02197]
[1764337578830,0.00016238,92022.0,92021.0,0.044]
[1764337579132,0.0557084,92019.0,92018.0,0.05]
[1764337579529,0.0557084,92019.0,92018.0,0.006]
[1764337579722,0.4957084,92019.0,92018.0,0.006]
[1764337579923,0.8565084,92019.0,92018.0,0.006]
[1764337581930,0.8565084,92019.0,92018.0,0.007]
[1764337584327,0.84564,92019.0,92018.0,0.007]
[1764337585326,0.86844557,92019.0,92018.0,0.007]
[1764337585633,0.3608,92019.0,92018.0,0.051]
[1764337585938,0.3608,92037.0,92036.0,0.044]
[1764337586125,0.3608,92037.0,92024.0,0.01262]
[1764337586126,0.04484,92035.0,92034.0,0.05808848]
[1764337586331,0.04484,92033.0,92032.0,0.044]
[1764337586638,0.02311,92037.0,92036.0,0.044]
[1764337586833,0.04484,92037.0,92036.0,0.044]
[1764337587235,0.04484,92037.0,92036.0,0.02197]
[1764337587832,0.05774,92034.0,92033.0,0.0108667]
[1764337588034,0.04484,92028.0,92027.0,0.02213299]
[1764337588625,0.04484,92028.0,92027.0,0.00016299]
[1764337588930,0.48484,92028.0,92027.0,0.00016299]
[1764337589325,0.48484,92028.0,92027.0,0.00316299]
[1764337590426,0.48484,92028.0,92027.0,0.04716299]
[1764337590631,0.38391,92032.0,92031.0,0.044]
[1764337590937,0.40564,92032.0,92031.0,0.044]
[1764337591740,0.40564,92032.0,92031.0,0.02197]
[1764337591937,0.40564,92032.0,92031.0,0.02397]
[1764337592442,0.40564,92032.0,92031.0,0.04644]
[1764337593140,0.54564,92032.0,92031.0,0.0573069]
[1764337593337,0.47564,92032.0,92031.0,0.0573069]
[1764337593539,0.40564,92032.0,92031.0,0.0573069]
[1764337594343,0.04501,92043.0,92042.0,0.04432]
[1764337594530,0.44501,92043.0,92042.0,0.04432]
[1764337594840,0.4558755,92043.0,92042.0,0.04432]
[1764337595142,0.4688355,92043.0,92042.0,0.04432]
[1764337595843,0.4688355,92043.0,92042.0,0.02185]
[1764337596026,0.4688355,92043.0,92042.0,0.04432]
[1764337596027,0.4558755,92043.0,92042.0,0.04432]
[1764337596233,0.04501,92039.0,92038.0,0.0327161]
[1764337596537,0.04501,92039.0,92031.0,0.03857812]
[1764337596538,0.04501,92032.0,92031.0,0.03857812]
[1764337596930,0.04501,92032.0,92031.0,0.06104812]
[1764337597140,0.04501,92032.0,92031.0,0.05904812]
[1764337597741,0.055876,92040.0,92039.0,0.04432]
[1764337598037,0.475876,92040.0,92039.0,0.04432]
[1764337598639,0.055876,92040.0,92039.0,0.055186]
[1764337598840,0.055876,92040.0,92039.0,0.056186]
[1764337599040,0.04501,92040.0,92039.0,0.056186]
[1764337599242,0.0002716,92046.0,92039.0,0.056186]
[1764337599243,0.0558757,92042.0,92041.0,0.04432]
[1764337599537,0.0558757,92042.0,92039.0,0.001]
[1764337599538,0.04501,92040.0,92039.0,0.001]
[1764337600139,0.04501,92040.0,92039.0,0.02285]
[1764337600538,0.0558759,92040.0,92039.0,0.02285]
[1764337600742,0.0558759,92040.0,92039.0,0.02385]
[1764337601843,0.0558759,92040.0,92039.0,0.002]
[1764337603149,0.0558759,92040.0,92039.0,0.02385]
[1764337603349,0.0558759,92040.0,92039.0,0.002]
[1764337604247,0.04501,92040.0,92039.0,0.04632]
[1764337605347,0.04501,92040.0,92039.0,0.002]
[1764337605348,0.41877,92040.0,92039.0,0.002]
[1764337605554,0.82877,92040.0,92039.0,0.002]
[1764337605947,0.78376,92040.0,92036.0,0.0108663]
[1764337606142,0.82877,92040.0,92039.0,0.001]
[1764337606546,0.41877,92040.0,92039.0,0.04532]
[1764337607350,0.41877,92040.0,92039.0,0.04632]
[1764337607553,0.05797,92040.0,92039.0,0.04632]
[1764337607744,0.04501,92040.0,92039.0,0.04532]
[1764337608850,0.04501,92040.0,92039.0,0.04732]
[1764337609641,0.05797,92040.0,92039.0,0.04732]
[1764337610038,0.05797,92040.0,92039.0,0.003]
[1764337610857,0.79877,92040.0,92039.0,0.003]
[1764337611155,0.79877,92040.0,92039.0,0.007]
[1764337615547,0.78581,92040.0,92039.0,0.05132]
[1764337615760,0.79877,92040.0,92039.0,0.007]
[1764337617552,0.41877,92040.0,92039.0,0.05132]
[1764337617857,0.05797,92040.0,92039.0,0.05132]
[1764337618343,0.05797,92040.0,92039.0,0.007]
[1764337618553,0.05797,92040.0,92039.0,0.05132]
[1764337618952,0.04501,92040.0,92039.0,0.05132]
[1764337619766,0.05797,92040.0,92039.0,0.05132]
[1764337619954,0.02269,92040.0,92039.0,0.05132]
[1764337620154,0.04501,92040.0,92039.0,0.05132]
[1764337620356,0.0452816,92046.0,92045.0,0.0551853]
[1764337620861,0.0002716,92046.0,92045.0,0.0551853]
[1764337621455,0.38349,92058.0,92057.0,0.0551839]
[1764337621654,0.40581,92058.0,92057.0,0.0551839]
[1764337622557,0.40581,92058.0,92050.0,0.4177647]
[1764337622558,0.04322,92051.0,92050.0,0.4177647]
[1764337622761,0.04322,92051.0,92050.0,0.5894847]
[1764337623762,0.04322,92049.0,92048.0,0.00016299]
[1764337624066,0.46322,92049.0,92048.0,0.00016299]
[1764337625357,0.46322,92049.0,92048.0,0.02326299]
[1764337625557,0.46322,92049.0,92048.0,0.02626299]
[1764337625956,0.46322,92049.0,92048.0,0.04926299]
[1764337626761,0.04322,92056.0,92055.0,0.0569641]
[1764337627160,0.05652,92056.0,92055.0,0.0339641]
[1764337627357,0.48652,92056.0,92055.0,0.0108641]
[1764337627559,0.04322,92050.0,92049.0,0.17168]
[1764337628654,0.0133,92056.0,92048.0,0.00116299]
[1764337628857,0.40402,92049.0,92048.0,0.00116299]
[1764337629063,0.78402,92049.0,92048.0,0.00116299]
[1764337629256,0.78402,92049.0,92048.0,0.00016299]
[1764337629455,0.78402,92049.0,92047.0,0.00482799]
[1764337629751,0.04322,92047.0,92046.0,0.1825452]
[1764337629949,0.46322,92047.0,92046.0,0.1825452]
[1764337630561,0.46322,92047.0,92046.0,0.17168]
[1764337630766,0.0540852,92046.0,92037.0,0.00016299]
[1764337631063,0.02134,92044.0,92043.0,0.0339655]
[1764337631270,0.48322,92044.0,92043.0,0.0569655]
[1764337632065,0.04322,92044.0,92043.0,0.0569655]
[1764337633568,0.04322,92044.0,92043.0,0.0579655]
[1764337634071,0.3608,92049.0,92048.0,0.0569649]
[1764337634072,0.40402,92049.0,92048.0,0.0569649]
[1764337634572,0.40402,92049.0,92048.0,0.0698649]
[1764337635273,0.04322,92049.0,92048.0,0.0569649]
[1764337636066,0.04322,92049.0,92048.0,0.0579649]
[1764337636270,0.05564299,92056.0,92055.0,0.0557241]
[1764337636563,0.04273299,92056.0,92055.0,0.0557241]
[1764337637276,0.04273299,92056.0,92055.0,0.0567241]
[1764337637763,0.05564299,92056.0,92055.0,0.0567241]
[1764337637969,0.45564299,92056.0,92055.0,0.0118641]
[1764337638171,0.15273299,92056.0,92055.0,0.0567241]
[1764337638578,0.00016299,92056.0,92055.0,0.0577241]
[1764337638760,0.05564299,92056.0,92055.0,0.0128641]
[1764337638961,0.00016299,92056.0,92055.0,0.0577241]
[1764337639155,0.04273299,92056.0,92055.0,0.4185241]
[1764337639563,0.00016299,92056.0,92055.0,0.4185241]
[1764337640471,0.05564299,92056.0,92055.0,0.4185241]
[1764337641468,0.05564299,92056.0,92055.0,0.5902041]
[1764337641675,0.04273299,92056.0,92055.0,0.5902041]
[1764337642377,0.00016299,92056.0,92055.0,0.5902041]
[1764337643065,0.3608,92075.0,92072.0,0.01369]
[1764337643263,0.10875452,92105.0,92072.0,0.01369]
[1764337643264,0.3608,92121.0,92109.0,0.04486]